bitfinex-derivatives/quotes_SOLF0:USTF0_20260123
["timestamp","ask_amount","ask_price","bid_price","bid_amount"]
[1769180657548,21.75994317,126.32,126.24,14.65820756]
[1769180657751,14.62614317,126.31,126.21,14.65820756]
[1769180658652,14.62614317,126.29,126.22,7.1392]
[1769180659247,21.76164317,126.29,126.21,14.65820756]
[1769180659748,14.62614317,126.28,126.18,14.65820756]
[1769180659944,12.40157328,126.27,126.19,14.65820756]
[1769180660250,7.1366,126.27,126.19,14.65820756]
[1769180660450,21.76274317,126.27,126.19,14.65820756]
[1769180660952,21.76274317,126.27,126.19,21.79900756]
[1769180661458,7.1358,126.29,126.21,14.65820756]
[1769180662648,14.62614317,126.27,126.18,14.65820756]
[1769180663448,110.9972,126.29,126.2,14.65820756]
[1769180663449,14.62614317,126.29,126.2,14.65820756]
[1769180664954,21.76284317,126.27,126.2,14.65820756]
[1769180665356,7.1356,126.29,126.2,14.65820756]
[1769180665561,21.76174317,126.29,126.2,14.65820756]
[1769180666254,5.26497328,126.3,126.21,14.65820756]
[1769180666753,12.39977328,126.3,126.22,7.1392]
[1769180667054,7.1348,126.3,126.22,21.79740756]
[1769180667360,14.62614317,126.32,126.23,14.65820756]
[1769180669049,21.76024317,126.32,126.24,7.138]
[1769180669256,14.62614317,126.32,126.24,7.138]
[1769180669456,14.62614317,126.32,126.24,21.79620756]
[1769180670959,14.62614317,126.29,126.22,7.1389]
[1769180672053,21.76154317,126.29,126.22,7.1389]
[1769180672556,5.26497328,126.3,126.2,7.14]
[1769180672557,14.04925317,126.28,126.2,7.14]
[1769180673851,21.18635317,126.26,126.18,21.71922835]
[1769180674052,14.04925317,126.26,126.18,21.71922835]
[1769180674251,14.04925317,126.26,126.18,14.57822835]
[1769180674954,7.1377,126.25,126.18,14.57822835]
[1769180675562,7.1382,126.24,126.18,21.71962835]
[1769180676662,21.18675317,126.26,126.18,21.71962835]
[1769180676866,14.04925317,126.26,126.18,21.71962835]
[1769180677664,7.1377,126.25,126.19,7.1409]
[1769180680364,7.1368,126.27,126.2,14.57822835]
[1769180680765,14.04925317,126.29,126.2,14.57822835]
[1769180681857,7.1359,126.28,126.21,7.1396]
[1769180682052,7.1359,126.28,126.21,14.57822835]
[1769180682771,21.18515317,126.28,126.21,14.57822835]
[1769180683960,21.18515317,126.28,126.21,21.71792835]
[1769180686663,14.04925317,126.26,126.18,14.57822835]
[1769180686866,14.04925317,126.25,126.15,14.57822835]
[1769180687064,14.04925317,126.23,126.15,14.57822835]
[1769180688474,125.07415317,126.26,126.15,14.57822835]
[1769180688661,14.04925317,126.25,126.15,14.57822835]
[1769180688863,7.1389,126.23,126.15,14.57822835]
[1769180689061,21.18815317,126.23,126.15,14.57822835]
[1769180689966,21.18815317,126.23,126.15,21.72132835]
[1769180690775,14.04925317,126.23,126.13,21.72222835]
[1769180691464,14.04925317,126.2,126.13,14.57822835]
[1769180692070,14.04925317,126.19,126.1,14.57822835]
[1769180692875,7.1416,126.18,126.11,7.1455]
[1769180693175,7.1416,126.18,126.11,21.72372835]
[1769180693481,7.1416,126.18,126.12,14.57822835]
[1769180694569,14.04925317,126.19,126.12,21.72312835]
[1769180695973,21.19025317,126.19,126.12,21.72312835]
[1769180700675,7.1416,126.18,126.12,21.72312835]
[1769180700883,14.04925317,126.18,126.09,14.57822835]
[1769180701179,14.04925317,126.17,126.09,14.57822835]
[1769180701367,14.04925317,126.17,126.07,111.1798]
[1769180701368,14.04925317,126.16,126.07,21.72552835]
[1769180701977,7.1438,126.14,126.08,7.1472]
[1769180702176,14.04925317,126.16,126.08,13.58817019]
[1769180702478,19.50478637,126.18,126.08,13.58817019]
[1769180702877,7.1427,126.16,126.08,13.58817019]
[1769180703077,21.37934171,126.16,126.08,13.58817019]
[1769180703872,5.26814466,126.18,126.1,13.58817019]
[1769180703873,7.1421,126.17,126.1,13.58817019]
[1769180704069,21.37874171,126.17,126.1,13.58817019]
[1769180704876,21.37874171,126.17,126.1,20.73407019]
[1769180705572,14.23664171,126.16,126.07,13.58817019]
[1769180706377,21.37934171,126.16,126.09,20.53138351]
[1769180706579,21.37934171,126.16,126.1,13.38488351]
[1769180708279,7.1435,126.15,126.1,13.38488351]
[1769180708482,13.87591275,126.17,126.1,13.38488351]
[1769180708878,13.87591275,126.16,126.06,13.38488351]
[1769180709085,13.87591275,126.16,126.08,13.38488351]
[1769180709675,13.87591275,126.16,126.09,13.38488351]
[1769180710270,124.99021275,126.16,126.06,13.38488351]
[1769180710475,13.87591275,126.12,126.04,13.38488351]
[1769180710781,13.87591275,126.1,126.01,13.38488351]
[1769180710983,2.15146575,126.07,126.01,13.38488351]
[1769180711980,9.29926575,126.07,126.01,13.38488351]
[1769180712385,2.15146575,126.05,125.99,13.38488351]
[1769180712775,7.1471,126.09,126.02,13.38488351]
[1769180712980,13.87591275,126.1,126.02,13.38488351]
[1769180713888,7.1473,126.08,126.02,13.38488351]
[1769180716086,7.1478,126.07,125.99,20.53678351]
[1769180716685,21.02371275,126.07,125.99,20.53678351]
[1769180716883,7.1484,126.06,125.99,13.38488351]
[1769180717883,116.45411604,126.09,125.96,111.2807]
[1769180717884,7.1477,126.08,126.0,13.38488351]
[1769180718692,21.02361275,126.08,126.0,13.38488351]
[1769180718890,21.02361275,126.08,126.0,20.53658351]
[1769180719086,7.1465,126.1,126.0,13.38488351]
[1769180719292,13.87591275,126.11,126.0,13.38488351]
[1769180721091,7.1467,126.09,126.03,13.38488351]
[1769180721692,7.1472,126.08,126.0,20.53608351]
[1769180722090,21.02311275,126.08,126.0,20.53608351]
[1769180722294,7.148,126.07,126.0,20.53608351]
[1769180722596,13.87591275,126.07,125.98,20.53728351]
[1769180722791,7.1485,126.06,125.95,214.20628679]
[1769180722994,13.87591275,126.04,125.94,13.38488351]
[1769180723485,21.02601275,126.03,125.94,13.38488351]
[1769180723686,13.87591275,126.03,125.94,13.38488351]
[1769180724487,13.87591275,126.03,125.95,7.1545]
[1769180725795,13.87591275,126.03,125.95,20.53938351]
[1769180726097,7.1506,126.02,125.95,20.53938351]
[1769180726894,21.02651275,126.02,125.95,20.53938351]
[1769180727192,21.02651275,126.02,125.95,13.38488351]
[1769180727193,7.1513,126.01,125.95,13.38488351]
[1769180727391,21.02721275,126.01,125.93,20.54008351]
[1769180727892,13.87591275,126.01,125.93,13.38488351]
[1769180728093,13.87591275,126.01,125.91,20.54128351]
[1769180728597,13.87591275,125.99,125.9,7.1572]
[1769180728793,13.87591275,125.99,125.89,13.38488351]
[1769180728987,7.1529,125.98,125.89,13.38488351]
[1769180730097,21.02881275,125.98,125.89,13.38488351]
[1769180730299,21.02881275,125.98,125.91,7.1567]
[1769180730699,13.87591275,125.98,125.91,7.1567]
[1769180731190,13.87591275,125.98,125.91,20.54158351]
[1769180731999,14.19901496,126.04,125.94,13.41300285]
[1769180732901,14.19901496,126.03,125.94,13.41300285]
[1769180733294,14.19901496,126.03,125.94,20.56810285]
[1769180734092,14.19901496,126.03,125.96,7.1538]
[1769180735489,21.34911496,126.03,125.96,7.1538]
[1769180736597,21.34911496,126.03,125.94,20.56770285]
[1769180737000,21.34911496,126.03,125.95,7.1545]
[1769180737902,14.19901496,126.02,125.95,7.1545]
[1769180738499,14.19901496,126.02,125.96,7.1539]
[1769180739205,116.49160851,126.06,125.97,13.41300285]
[1769180739206,21.34841496,126.05,125.97,13.41300285]
[1769180739504,21.34841496,126.05,125.97,20.56640285]
[1769180740295,21.34841496,126.05,125.94,116.58580851]
[1769180740296,14.19901496,126.05,125.98,20.56570285]
[1769180740497,21.34721496,126.07,125.98,13.41300285]
[1769180740700,14.19901496,126.07,125.98,13.41300285]
[1769180740904,14.19901496,126.07,125.99,7.1523]
[1769180740905,7.1484,126.06,125.99,7.1523]
[1769180741098,14.19901496,126.06,125.99,13.41300285]
[1769180741304,14.19901496,126.06,125.96,13.41300285]
[1769180741500,7.1501,126.03,125.96,13.41300285]
[1769180741704,14.19901496,126.05,125.96,13.41300285]
[1769180743008,21.34841496,126.05,125.97,20.56630285]
[1769180743502,21.34841496,126.05,125.97,13.41300285]
[1769180744207,14.19901496,126.05,125.99,7.1522]
[1769180744814,14.19901496,126.08,126.0,13.41300285]
[1769180745012,14.19901496,126.1,126.01,13.41300285]
[1769180745504,111.1418,126.13,126.01,13.41300285]
[1769180745505,7.1454,126.12,126.03,13.41300285]
[1769180745710,14.19901496,126.15,126.04,13.41300285]
[1769180746209,7.1448,126.13,126.06,7.1481]
[1769180746404,14.19901496,126.15,126.06,20.56110285]
[1769180747006,21.34251496,126.15,126.07,20.56060285]
[1769180747706,14.19901496,126.15,126.07,20.56060285]
[1769180748311,14.19901496,126.13,126.04,13.41300285]
[1769180748814,7.145,126.12,126.04,20.56220285]
[1769180749513,14.19901496,126.13,126.05,7.1487]
[1769180753113,14.19901496,126.13,126.06,7.1482]
[1769180753513,14.19901496,126.13,126.06,20.56120285]
[1769180753710,14.19901496,126.13,126.03,111.2207]
[1769180753711,14.19901496,126.15,126.07,20.56070285]
[1769180753916,14.19901496,126.15,126.07,13.41300285]
[1769180754212,14.19901496,126.15,126.04,13.41300285]
[1769180754414,7.1445,126.13,126.05,20.56150285]
[1769180754715,21.34351496,126.13,126.05,20.56150285]
[1769180756107,14.19901496,126.12,126.05,13.41300285]
[1769180756310,14.19901496,126.15,126.05,13.41300285]
[1769180756512,14.19901496,126.15,126.08,20.56010285]
[1769180756704,7.1431,126.16,126.08,13.41300285]
[1769180757314,7.1431,126.16,126.09,7.1464]
[1769180757610,21.34211496,126.16,126.08,13.41300285]
[1769180757812,7.1433,126.15,126.08,13.41300285]
[1769180758403,21.34231496,126.15,126.08,13.41300285]
[1769180758608,21.34291496,126.14,126.05,13.41300285]
[1769180760012,21.34291496,126.14,126.07,20.56070285]
[1769180760720,14.19901496,126.13,126.05,7.1484]
[1769180760921,14.19901496,126.13,126.05,13.41300285]
[1769180761104,19.48532347,126.15,126.05,13.41300285]
[1769180761415,7.1445,126.13,126.06,7.1483]
[1769180763309,7.1451,126.12,126.05,13.41300285]
[1769180763513,21.1203605,126.12,126.05,13.41300285]
[1769180763714,13.9752605,126.12,126.02,14.03100075]
[1769180763919,13.9752605,126.12,126.04,7.1495]
[1769180764616,111.1316,126.14,126.02,21.18110075]
[1769180764617,21.1213605,126.1,126.02,21.18110075]
[1769180764823,21.1213605,126.1,126.02,14.03100075]
[1769180765512,21.1219605,126.09,126.02,14.03100075]
[1769180767005,13.33739382,126.08,126.02,7.1505]
[1769180767209,13.33739382,126.08,126.0,14.00032381]
[1769180767510,20.48409382,126.09,126.0,14.00032381]
[1769180768917,111.1204,126.15,125.97,111.2691]
[1769180768918,13.33739382,126.07,125.97,14.00032381]
[1769180769424,20.48649382,126.05,125.97,14.00032381]
[1769180770512,129.80590233,126.08,125.99,14.00032381]
[1769180770714,13.33739382,126.07,125.99,14.00032381]
[1769180771424,7.1484,126.06,125.99,14.00032381]
[1769180771925,13.33739382,126.07,125.99,14.00032381]
[1769180772117,20.48519382,126.07,125.99,14.00032381]
[1769180773523,7.1484,126.06,125.99,14.00032381]
[1769180774927,7.1489,126.05,125.99,14.00032381]
[1769180775114,13.33739382,126.07,125.99,14.00032381]
[1769180775321,7.1484,126.06,126.0,14.00032381]
[1769180775616,13.33739382,126.07,126.0,14.00032381]
[1769180776221,13.33739382,126.09,126.01,14.00032381]
[1769180776523,13.33739382,126.09,125.98,14.00032381]
[1769180777323,7.1489,126.05,125.99,7.1518]
[1769180777630,13.33739382,126.07,125.98,14.00032381]
[1769180777823,13.33739382,126.06,125.96,14.00032381]
[1769180778127,7.1496,126.04,125.97,21.15322381]
[1769180778430,7.1496,126.04,125.97,14.00032381]
[1769180779321,20.48699382,126.04,125.97,14.00032381]
[1769180780023,20.48699382,126.04,125.97,21.15362381]
[1769180780530,7.1496,126.04,125.97,14.00032381]
[1769180781127,20.48619382,126.06,125.97,14.00032381]
[1769180781329,18.62370233,126.08,125.98,14.00032381]
[1769180781822,13.33739382,126.08,126.0,14.00032381]
[1769180782420,20.48459382,126.08,126.01,7.1506]
[1769180783028,20.48459382,126.08,126.01,21.15092381]
[1769180784227,7.1479,126.07,126.01,14.00032381]
[1769180786123,13.33739382,126.06,125.98,14.00032381]
[1769180786627,7.1489,126.05,125.98,21.15312381]
[1769180786934,7.1489,126.05,125.98,14.00032381]
[1769180788031,7.1489,126.05,125.99,7.1523]
[1769180788235,7.1489,126.05,125.99,21.15262381]
[1769180789426,7.1489,126.05,125.99,14.00032381]
[1769180789641,13.33739382,126.05,125.96,14.00032381]
[1769180790630,13.33739382,126.04,125.96,14.00032381]
[1769180790830,13.33739382,126.04,125.91,14.3129]
[1769180790831,13.33739382,126.03,125.91,14.00032381]
[1769180792036,7.1514,126.01,125.94,13.84038861]
[1769180793140,18.47499173,126.05,125.95,13.84038861]
[1769180793324,13.18868322,126.05,125.95,13.84038861]
[1769180793928,13.18868322,126.05,125.97,13.84038861]
[1769180794839,13.18868322,126.07,125.98,13.84038861]
[1769180795330,7.149,126.05,125.98,13.84038861]
[1769180796240,7.149,126.05,125.98,20.99308861]
[1769180797540,7.1483,126.06,125.99,20.99258861]
[1769180798342,13.18868322,126.09,126.01,13.84038861]
[1769180798537,13.18868322,126.12,126.01,13.84038861]
[1769180799137,7.146,126.11,126.04,20.98978861]
[1769180799335,13.18868322,126.12,126.04,13.84038861]
[1769180799939,13.18868322,126.15,126.06,20.98848861]
[1769180800438,20.33248322,126.15,126.07,20.98798861]
[1769180800635,13.18868322,126.18,126.07,13.84038861]
[1769180801234,13.18868322,126.18,126.08,13.84038861]
[1769180801434,13.18868322,126.2,126.1,13.84038861]
[1769180801838,7.1411,126.19,126.11,7.1454]
[1769180802031,20.32978322,126.19,126.11,7.1454]
[1769180802237,20.32978322,126.19,126.11,20.98578861]
[1769180802741,20.32978322,126.19,126.12,7.1447]
[1769180802742,13.18868322,126.19,126.12,7.1447]
[1769180802947,13.18868322,126.19,126.11,13.84038861]
[1769180803940,13.18868322,126.19,126.12,13.84038861]
[1769180804337,13.18868322,126.19,126.12,20.98518861]
[1769180804545,7.1406,126.2,126.12,20.98518861]
[1769180804741,329.26907488,126.22,126.12,20.98518861]
[1769180804941,20.32828322,126.22,126.14,13.84038861]
[1769180805336,13.18868322,126.22,126.14,13.84038861]
[1769180805851,7.1389,126.23,126.15,20.98338861]
[1769180806039,20.32758322,126.23,126.15,13.84038861]
[1769180806638,13.18868322,126.22,126.13,7.144]
[1769180806845,13.18868322,126.22,126.13,13.84038861]
[1769180807743,20.32658322,126.25,126.15,20.98338861]
[1769180807936,13.18868322,126.24,126.15,20.98338861]
[1769180808650,13.18868322,126.24,126.16,20.98288861]
[1769180809647,13.18868322,126.24,126.17,7.1419]
[1769180809848,25.59920044,126.27,126.18,13.84038861]
[1769180810040,20.32548322,126.27,126.18,13.84038861]
[1769180810241,13.18868322,126.26,126.18,20.98158861]
[1769180811144,13.18868322,126.25,126.18,13.84038861]
[1769180811645,13.18868322,126.25,126.16,7.1422]
[1769180811646,13.18868322,126.24,126.16,7.1422]
[1769180812039,13.18868322,126.24,126.15,13.84038861]
[1769180812244,13.18868322,126.23,126.15,13.84038861]
[1769180812440,13.18868322,126.26,126.15,13.84038861]
[1769180812636,13.18868322,126.26,126.17,13.84038861]
[1769180813954,13.18868322,126.25,126.18,7.1413]
[1769180814348,13.18868322,126.25,126.18,20.98168861]
[1769180815547,13.18868322,126.25,126.19,7.1407]
[1769180815749,20.32488322,126.28,126.19,13.84038861]
[1769180816049,13.18868322,126.27,126.19,13.84038861]
[1769180816550,20.32518322,126.27,126.19,13.84038861]
[1769180817453,13.18868322,126.25,126.16,124.94648861]
[1769180817654,13.18868322,126.25,126.16,13.84038861]
[1769180818155,13.18868322,126.23,126.13,13.84038861]
[1769180818753,13.18868322,126.22,126.13,124.97218861]
[1769180819159,13.18868322,126.22,126.13,13.84038861]
[1769180819457,13.18868322,126.21,126.13,20.98428861]
[1769180819660,13.18868322,126.21,126.13,13.84038861]
[1769180820153,7.1393,126.22,126.15,7.1431]
[1769180820359,13.18868322,126.23,126.14,13.84038861]
[1769180820763,13.18868322,126.23,126.15,7.1432]
[1769180821456,5.27371722,126.24,126.16,124.94458861]
[1769180821652,13.18868322,126.26,126.17,13.84038861]
[1769180823855,13.18868322,126.26,126.19,7.1409]
[1769180824963,20.32568322,126.26,126.19,7.1409]
[1769180825261,20.32568322,126.26,126.19,20.32807705]
[1769180825562,7.1363,126.28,126.19,13.18717705]
[1769180825766,19.88487061,126.28,126.19,13.18717705]
[1769180825964,12.74857061,126.28,126.2,13.36936305]
[1769180826981,12.74857061,126.28,126.22,7.1391]
[1769180827277,12.74857061,126.28,126.17,124.46516305]
[1769180827477,19.88497061,126.28,126.18,13.36936305]
[1769180827769,18.7442199,126.3,126.2,13.36936305]
[1769180828080,13.47050268,126.29,126.2,13.36936305]
[1769180828375,13.47050268,126.28,126.17,124.46516305]
[1769180828875,13.47050268,126.28,126.18,13.36936305]
[1769180829072,20.60700268,126.27,126.2,7.1399]
[1769180829679,20.60700268,126.27,126.2,13.36936305]
[1769180830477,13.47050268,126.26,126.19,7.1404]
[1769180830667,13.47050268,126.26,126.18,124.46006305]
[1769180831471,20.60770268,126.26,126.18,13.36936305]
[1769180831677,13.47050268,126.25,126.18,13.36936305]
[1769180831876,13.47050268,126.25,126.15,13.36936305]
[1769180832774,20.60830268,126.25,126.18,7.141]
[1769180832964,7.1378,126.25,126.18,7.141]
[1769180833166,13.47050268,126.24,126.18,7.141]
[1769180833368,20.60930268,126.23,126.15,13.36936305]
[1769180834675,20.61000268,126.22,126.15,20.51256305]
[1769180834882,13.47050268,126.22,126.12,13.36936305]
[1769180835381,20.61040268,126.21,126.12,20.51426305]
[1769180835973,13.47050268,126.19,126.12,13.36936305]
[1769180836778,7.1416,126.18,126.12,13.36936305]
[1769180837175,13.47050268,126.18,126.1,13.36936305]
[1769180837570,13.47050268,126.17,126.06,13.36936305]
[1769180838478,7.1433,126.15,126.07,13.36936305]
[1769180838977,7.1441,126.14,126.07,13.36936305]
[1769180839175,13.47050268,126.14,126.07,13.36936305]
[1769180839379,13.47050268,126.14,126.04,13.36936305]
[1769180839777,111.0646,126.22,126.1,13.36936305]
[1769180839969,111.0568,126.22,126.11,13.36936305]
[1769180840168,7.1412,126.19,126.11,13.36936305]
[1769180840378,124.52720268,126.22,126.11,13.36936305]
[1769180840575,13.47050268,126.19,126.11,13.36936305]
[1769180841768,7.1417,126.18,126.11,13.36936305]
[1769180844084,7.1407,126.2,126.11,13.36936305]
[1769180844482,13.47050268,126.22,126.11,13.36936305]
[1769180844681,20.61020268,126.22,126.13,13.36936305]
[1769180844886,7.1397,126.22,126.14,13.36936305]
[1769180847191,7.14,126.21,126.14,13.36936305]
[1769180848585,7.1406,126.2,126.14,13.36936305]
[1769180849187,13.47050268,126.2,126.11,13.36936305]
[1769180850689,124.54740268,126.2,126.11,13.36936305]
[1769180850889,124.55400268,126.19,126.11,13.36936305]
[1769180851889,7.1422,126.17,126.11,13.36936305]
[1769180853983,7.1428,126.16,126.11,13.36936305]
[1769180856494,12.08657898,126.16,126.04,116.48021722]
[1769180856786,123.19777898,126.16,126.05,7.1485]
[1769180857091,12.08657898,126.15,126.05,7.1485]
[1769180857293,128.4555962,126.18,126.08,7.1472]
[1769180857493,12.08657898,126.17,126.08,7.1472]
[1769180857893,7.1433,126.15,126.08,7.1472]
[1769180858079,111.0835,126.19,126.09,7.1462]
[1769180858281,123.17007898,126.19,126.09,7.1462]
[1769180858583,7.1427,126.16,126.1,8.18504129]
[1769180858891,12.08657898,126.18,126.1,8.18504129]
[1769180859995,7.1433,126.15,126.1,8.18504129]
[1769180861804,12.08657898,126.16,126.07,8.09687377]
[1769180861984,12.08657898,126.15,126.07,8.09687377]
[1769180862689,7.1446,126.13,126.07,8.09687377]
[1769180862886,12.08657898,126.15,126.07,8.09687377]
[1769180863092,5.27411492,126.17,126.07,8.09687377]
[1769180863296,17.3606939,126.17,126.07,8.09687377]
[1769180863699,12.08657898,126.15,126.07,8.09687377]
[1769180864087,12.08657898,126.13,126.03,8.06146457]
[1769180864288,7.1451,126.12,126.04,8.06146457]
[1769180865104,12.08657898,126.13,126.05,15.19295826]
[1769180865790,19.22977898,126.16,126.07,8.04405826]
[1769180866199,12.08657898,126.16,126.09,7.1465]
[1769180866899,12.08657898,126.16,126.08,7.9960041]
[1769180867702,12.41621492,126.17,126.06,7.1479]
[1769180867703,12.08657898,126.15,126.06,7.1479]
[1769180868002,12.08657898,126.15,126.06,15.12708711]
[1769180868901,12.08657898,126.13,126.04,7.1492]
[1769180869093,12.08657898,126.13,126.04,15.11174284]
[1769180869504,19.23107898,126.13,126.05,7.1488]
[1769180870005,12.08657898,126.12,126.05,7.1488]
[1769180871107,12.08657898,126.2,126.06,7.88656732]
[1769180871303,12.08657898,126.22,126.13,7.88656732]
[1769180872099,12.08657898,126.22,126.14,15.00577517]
[1769180874004,12.08657898,126.22,126.14,7.1436]
[1769180874202,12.08657898,126.22,126.14,14.91953907]
[1769180874409,12.08657898,126.22,126.15,7.1429]
[1769180875107,12.08657898,126.22,126.16,7.1425]
[1769180875319,12.08657898,126.25,126.16,7.73977815]
[1769180876299,12.08657898,126.25,126.17,118.80325733]
[1769180877104,12.08657898,126.25,126.18,7.1411]
[1769180877902,12.08657898,126.28,126.19,118.71331269]
[1769180879000,12.08657898,126.28,126.21,7.1396]
[1769180879410,12.08657898,126.27,126.2,7.1403]
[1769180879613,12.08657898,126.27,126.19,7.59927856]
[1769180881616,12.08657898,126.27,126.2,7.1403]
[1769180883215,12.08657898,126.27,126.21,7.1398]
[1769180883713,12.08657898,126.27,126.19,14.73987856]
[1769180883914,12.08657898,126.27,126.19,7.59927856]
[1769180884318,12.08657898,126.27,126.21,7.1397]
[1769180885618,11.36206202,126.3,126.21,7.35055115]
[1769180885914,11.36206202,126.29,126.18,111.0851]
[1769180886113,11.82418858,126.26,126.17,7.3322023]
[1769180886308,11.82418858,126.26,126.18,118.38823949]
[1769180886817,11.82418858,126.26,126.19,7.26721269]
[1769180887015,11.82418858,126.26,126.21,7.1396]
[1769180887320,11.82418858,126.26,126.18,111.0906]
[1769180887721,11.82418858,126.26,126.17,118.36441269]
[1769180889013,11.82418858,126.26,126.2,7.1403]
[1769180889324,11.82418858,126.26,126.16,111.1043]
[1769180889621,11.82418858,126.25,126.19,7.1409]
[1769180890513,11.82418858,126.25,126.16,118.31112085]
[1769180891123,11.82418858,126.23,126.14,111.1195]
[1769180891920,11.82418858,126.23,126.16,7.1421]
[1769180893221,11.82418858,126.23,126.16,118.18324313]
[1769180893721,11.82418858,126.22,126.16,7.1425]
[1769180893920,11.82418858,126.22,126.13,118.21034313]
[1769180894623,11.82418858,126.22,126.16,7.1426]
[1769180894922,11.82418858,126.22,126.13,118.21034313]
[1769180895424,11.82418858,126.22,126.16,7.1426]
[1769180895920,5.27411492,126.24,126.16,7.1426]
[1769180895921,11.82418858,126.21,126.16,7.1426]
[1769180896225,11.82418858,126.21,126.14,7.1433]
[1769180897026,11.82418858,126.21,126.13,7.07794313]
[1769180897223,11.82418858,126.2,126.13,7.07794313]
[1769180898522,18.96468858,126.2,126.13,7.07794313]
[1769180898824,11.82418858,126.19,126.11,6.90161901]
[1769180899214,7.1398,126.22,126.11,6.90161901]
[1769180899419,11.82418858,126.21,126.11,6.90161901]
[1769180901229,7.1398,126.22,126.12,6.86281532]
[1769180901527,18.96398858,126.22,126.12,6.86281532]
[1769180901722,122.85648858,126.25,126.13,6.86281532]
[1769180901922,11.82418858,126.24,126.13,6.86281532]
[1769180902524,18.96368858,126.22,126.13,6.86281532]
[1769180902728,11.82418858,126.22,126.13,6.86281532]
[1769180902928,11.82418858,126.22,126.11,6.81171056]
[1769180903426,11.82418858,126.19,126.11,6.81171056]
[1769180904527,11.82418858,126.25,126.15,6.78661691]
[1769180904721,11.82418858,126.27,126.15,6.78661691]
[1769180905229,11.82418858,126.27,126.17,6.76177168]
[1769180905421,11.82418858,126.27,126.18,6.76177168]
[1769180907738,11.82418858,126.26,126.18,6.76177168]
[1769180908340,11.82418858,126.25,126.18,6.76177168]
[1769180908742,11.82418858,126.25,126.15,13.82124466]
[1769180909043,11.82418858,126.25,126.16,6.67834466]
[1769180909935,11.82418858,126.24,126.16,6.67834466]
[1769180910946,11.82418858,126.23,126.13,13.77567139]
[1769180911132,11.82418858,126.23,126.13,6.63157139]
[1769180911535,7.1394,126.22,126.14,6.63157139]
[1769180911748,18.96358858,126.22,126.14,6.63157139]
[1769180912042,10.9464618,126.21,126.11,6.59002693]
[1769180912637,18.0863618,126.21,126.12,13.73492693]
[1769180913049,18.0863618,126.21,126.13,13.71168403]
[1769180913452,10.9464618,126.21,126.14,6.56738403]
[1769180913748,7.1391,126.23,126.14,13.71088403]
[1769180914256,18.0855618,126.23,126.14,13.71088403]
[1769180915147,10.9464618,126.22,126.14,13.71088403]
[1769180915546,10.9464618,126.22,126.14,6.56738403]
[1769180916252,10.9464618,126.22,126.14,13.71098403]
[1769180916848,10.9464618,126.22,126.14,6.56738403]
[1769180917042,18.0857618,126.22,126.15,7.1432]
[1769180919347,10.9464618,126.22,126.15,7.1432]
[1769180920346,10.9464618,126.22,126.16,7.1426]
[1769180920753,10.9464618,126.22,126.14,7.1433]
[1769180921955,10.9464618,126.21,126.14,7.1433]
[1769180922549,10.9464618,126.25,126.15,13.50717204]
[1769180922756,10.9464618,126.24,126.12,6.36447204]
[1769180923056,10.9464618,126.23,126.12,6.36447204]
[1769180923256,18.0863618,126.21,126.12,6.36447204]
[1769180923459,10.9464618,126.2,126.12,6.36447204]
[1769180924555,10.9464618,126.2,126.09,111.1636]
[1769180924556,10.9464618,126.18,126.09,6.3247678]
[1769180925354,10.9464618,126.18,126.11,6.30524619]
[1769180926959,10.9464618,126.17,126.1,7.1455]
[1769180927159,10.9464618,126.17,126.1,13.42527626]
[1769180927848,10.9464618,126.17,126.11,6.26092424]
[1769180928655,10.9464618,126.2,126.12,6.26092424]
[1769180930863,10.9464618,126.2,126.12,13.40582424]
[1769180931963,10.9464618,126.2,126.13,6.05680018]
[1769180932661,10.9464618,126.2,126.14,7.1438]
[1769180934462,10.9464618,126.23,126.15,5.93662575]
[1769180935167,10.9464618,126.21,126.13,5.87756248]
[1769180935765,10.9464618,126.19,126.13,7.1444]
[1769180937966,10.9464618,126.19,126.12,7.1449]
[1769180938463,10.9464618,126.19,126.13,7.144]
[1769180940357,10.9464618,126.18,126.09,5.59226643]
[1769180941662,18.0886618,126.17,126.11,7.1455]
[1769180942068,10.55061902,126.16,126.11,7.1455]
[1769180942267,10.55061902,126.16,126.09,5.59226643]
[1769180942268,10.55061902,126.15,126.1,7.1461]
[1769180942763,7.1427,126.16,126.07,7.1473]
[1769180942764,10.55061902,126.13,126.07,7.1473]
[1769180943367,10.55061902,126.13,126.05,5.41623837]
[1769180944772,10.55061902,126.13,126.06,5.25926763]
[1769180945965,10.55061902,126.13,126.08,7.1471]
[1769180946871,2.14950974,126.12,126.08,7.1471]
[1769180947072,12.36688969,126.12,126.06,7.1478]
[1769180947272,10.21737995,126.12,126.06,7.1478]
[1769180947577,2.14950974,126.11,126.07,7.1478]
[1769180951569,10.21737995,126.12,126.07,7.1478]
[1769180951770,12.36688969,126.13,126.07,7.1478]
[1769180951978,12.36688969,126.11,126.06,7.1483]